bitfinex/quotes_SOLUSD_20220212
["timestamp","ask_amount","ask_price","bid_price","bid_amount"]
[1644634781688,5.093,98.197,98.14,24.0081]
[1644634788506,5.093,98.197,98.137,1.44473117]
[1644634788704,0.03795382,98.19,98.137,1.44473117]
[1644634788904,10.05918087,98.188,98.123,39.94699726]
[1644634789105,28.0328,98.187,98.123,39.94699726]
[1644634791308,22.9398,98.187,98.13,1.44473117]
[1644634791510,22.9398,98.187,98.131,5.093]
[1644634792509,22.9398,98.187,98.133,1.44473117]
[1644634792911,22.9398,98.187,98.134,5.093]
[1644634793110,22.9398,98.187,98.135,1.44473117]
[1644634793811,22.9398,98.187,98.134,1.44473117]
[1644634794009,22.9398,98.187,98.133,1.44473117]
[1644634794210,22.9398,98.187,98.134,1.44473117]
[1644634794909,22.9398,98.187,98.132,1.44473117]
[1644634796010,22.9398,98.187,98.135,1.44473117]
[1644634796911,5.093,98.186,98.129,1.44473117]
[1644634797115,5.093,98.186,98.125,1.44473117]
[1644634797310,0.03795382,98.18,98.125,1.44473117]
[1644634797512,5.21866834,98.178,98.123,39.94699726]
[1644634798010,5.094,98.177,98.123,39.94699726]
[1644634798410,24.9966,98.176,98.123,39.94699726]
[1644634798610,5.094,98.175,98.123,39.94699726]
[1644634800122,24.9966,98.176,98.123,39.94699726]
[1644634800521,5.094,98.175,98.123,39.94699726]
[1644634800720,24.9966,98.176,98.124,24.2081]
[1644634801822,24.9966,98.176,98.125,5.094]
[1644634802425,24.9966,98.176,98.124,29.3021]
[1644634803125,24.9966,98.176,98.124,25.65283117]
[1644634803530,24.9966,98.176,98.125,1.44473117]
[1644634803727,24.9966,98.176,98.124,25.65283117]
[1644634804128,24.9966,98.176,98.124,24.2081]
[1644634804527,24.9966,98.176,98.124,25.65283117]
[1644634804727,24.9966,98.176,98.125,5.094]
[1644634806228,5.094,98.175,98.124,24.2081]
[1644634807329,24.9966,98.176,98.126,1.44473117]
[1644634807530,24.9966,98.176,98.127,5.094]
[1644634807928,24.9966,98.176,98.125,5.094]
[1644634808333,24.9966,98.176,98.126,1.44473117]
[1644634808532,24.9966,98.176,98.127,5.094]
[1644634810934,24.9966,98.176,98.124,24.2081]
[1644634811135,24.9966,98.176,98.125,5.094]
[1644634811539,24.9966,98.176,98.125,6.53873117]
[1644634812136,24.9966,98.176,98.126,1.44473117]
[1644634812337,24.9966,98.176,98.127,5.094]
[1644634812737,24.9966,98.176,98.13,1.44473117]
[1644634813343,24.9966,98.176,98.131,1.44473117]
[1644634815044,24.9966,98.176,98.13,1.44473117]
[1644634815245,24.9966,98.176,98.124,24.2081]
[1644634815246,24.9966,98.176,98.125,1.44473117]
[1644634815444,24.9966,98.176,98.123,41.39172843]
[1644634815646,5.094,98.175,98.124,23.7048]
[1644634817359,5.094,98.175,98.124,25.14953117]
[1644634817761,5.094,98.175,98.124,23.7048]
[1644634818563,5.094,98.175,98.123,41.39172843]
[1644634818963,5.094,98.175,98.114,1.44473117]
[1644634819165,0.03808817,98.17,98.111,1.44473117]
[1644634819362,5.094,98.169,98.112,1.44473117]
[1644634819963,5.094,98.169,98.113,40.71259564]
[1644634824366,5.094,98.169,98.11,0.024]
[1644634825774,15.2937,98.16,98.11,0.024]
[1644634825975,28.6468,98.159,98.11,0.024]
[1644634826175,36.0,98.158,98.071,1.44473117]
[1644634826374,36.0,98.158,98.01,14.68]
[1644634826375,5.096,98.157,98.059,1.44473117]
[1644634826576,5.096,98.157,98.059,44.62842803]
[1644634826779,6.21753776,98.156,98.059,44.62842803]
[1644634826979,6.5336327,98.155,98.059,44.62842803]
[1644634827175,20.62396375,98.155,98.036,1.44473117]
[1644634827379,183.55,98.14,98.029,1.44473117]
[1644634827578,14.68,98.13,98.029,1.44473117]
[1644634827781,5.097,98.129,98.026,1.44473117]
[1644634827982,5.097,98.129,98.03,1.44473117]
[1644634828180,39.76081407,98.128,98.028,47.4565602]
[1644634828380,29.6099,98.127,98.028,47.4565602]
[1644634828581,31.99356791,98.127,98.028,47.4565602]
[1644634828779,15.3069,98.1,98.028,48.90129137]
[1644634828979,5.098,98.099,98.028,47.4565602]
[1644634829580,23.9122,98.098,98.028,47.4565602]
[1644634829781,23.9122,98.098,98.029,1.44473117]
[1644634829981,23.9122,98.098,98.028,47.4565602]
[1644634830184,34.81683042,98.098,98.028,47.4565602]
[1644634830682,15.3057,98.09,98.028,47.4565602]
[1644634830880,5.098,98.089,98.028,47.4565602]
[1644634831884,15.3079,98.08,98.028,47.4565602]
[1644634832083,5.099,98.079,98.028,47.4565602]
[1644634832482,5.099,98.089,98.028,47.4565602]
[1644634833784,15.3076,98.07,98.028,47.4565602]
[1644634835183,5.099,98.089,98.028,47.4565602]
[1644634835184,15.306,98.08,98.028,47.4565602]
[1644634836285,15.306,98.08,98.0,5.098]
[1644634836585,15.3076,98.07,97.993,3.82839908]
[1644634837187,15.3076,98.07,97.994,44.04651869]
[1644634837385,34.78912431,98.068,97.994,44.04651869]
[1644634837596,5.099,98.067,97.994,44.04651869]
[1644634837989,29.4299,98.067,97.994,44.04651869]
[1644634841592,29.4299,98.067,98.0,0.024]
[1644634841997,29.4299,98.067,98.001,5.099]
[1644634843325,29.4299,98.067,98.0,0.024]
[1644634843714,15.3093,98.06,98.0,0.024]
[1644634843915,14.68,98.05,98.0,0.024]
[1644634844112,28.05,98.049,97.98,0.024]
[1644634844313,28.05,98.049,97.97,0.024]
[1644634844714,15.3151,98.04,97.97,0.024]
[1644634844914,15.87632018,98.038,97.97,0.024]
[1644634845114,28.052,98.037,97.97,0.024]
[1644634846415,22.951,98.037,97.97,0.024]
[1644634847215,22.951,98.037,97.971,2.38366791]
[1644634847416,22.951,98.037,97.971,7.48466791]
[1644634847616,22.951,98.037,97.971,5.101]
[1644634848017,47.87769803,98.036,97.971,5.101]
[1644634848219,5.101,98.035,97.97,0.024]
[1644634848818,15.3139,98.03,97.97,0.024]
[1644634849018,5.102,98.029,97.97,0.024]
[1644634849219,5.101,98.034,97.97,0.024]
[1644634849421,5.101,98.035,97.97,0.024]
[1644634850318,5.101,98.035,97.961,35.54389257]
[1644634850918,4.76374646,98.019,97.961,35.54389257]
[1644634851523,4.76374646,98.019,97.963,1.44473117]
[1644634851719,29.3058,98.018,97.963,1.44473117]
[1644634851918,24.2038,98.018,97.964,1.44473117]
[1644634852322,24.2038,98.018,97.963,1.44473117]
[1644634852723,24.2038,98.018,97.964,1.44473117]
[1644634853121,24.2038,98.018,97.962,1.44473117]
[1644634853523,24.2038,98.018,97.963,1.44473117]
[1644634853723,24.2038,98.018,97.97,1.44473117]
[1644634853923,24.2038,98.018,97.971,1.44473117]
[1644634854324,24.2038,98.018,97.971,3.82839908]
[1644634855424,24.2038,98.018,97.972,1.44473117]
[1644634856626,5.102,98.017,97.972,1.44473117]
[1644634856827,5.102,98.017,97.976,1.44473117]
[1644634857028,5.102,98.017,97.977,48.24177637]
[1644634857227,5.102,98.017,97.977,46.7970452]
[1644634857427,5.102,98.017,97.977,48.24177637]
[1644634858027,5.102,98.039,97.977,48.24177637]
[1644634858228,71.4670702,98.038,97.977,48.24177637]
[1644634858529,5.101,98.037,97.977,48.24177637]
[1644634858729,5.101,98.037,97.978,1.44473117]
[1644634859828,5.101,98.037,97.979,1.44473117]
[1644634860029,5.101,98.037,97.982,1.44473117]
[1644634860231,5.101,98.037,97.981,1.44473117]
[1644634860432,5.101,98.037,97.982,1.44473117]
[1644634861931,5.101,98.037,97.977,46.7970452]
[1644634861932,5.101,98.037,97.979,1.44473117]
[1644634862232,5.101,98.058,97.991,1.44473117]
[1644634862431,53.91987201,98.069,97.996,1.44473117]
[1644634862631,24.815,98.068,97.993,24.2655]
[1644634862831,5.099,98.067,97.993,24.2655]
[1644634864342,15.3092,98.06,97.993,24.2655]
[1644634864542,5.099,98.059,97.993,24.2655]
[1644634865338,5.099,98.059,98.0,0.024]
[1644634865942,24.815,98.068,98.0,0.024]
[1644634866342,5.099,98.067,98.002,1.44473117]
[1644634866548,5.099,98.067,98.01,0.024]
[1644634866740,5.099,98.067,98.002,1.44473117]
[1644634867139,5.099,98.067,98.0,0.024]
[1644634868044,5.099,98.067,98.001,1.44473117]
[1644634868247,24.815,98.068,98.002,1.44473117]
[1644634868445,5.099,98.066,98.01,0.024]
[1644634868646,24.815,98.068,98.0,0.024]
[1644634868647,5.099,98.067,98.0,0.024]
[1644634868846,5.099,98.065,98.0,1.46873117]
[1644634869047,5.099,98.066,98.001,1.44473117]
[1644634869245,5.099,98.067,98.001,1.44473117]
[1644634869446,5.099,98.067,98.0,1.46873117]
[1644634869868,5.099,98.067,98.002,1.44473117]
[1644634870270,5.099,98.067,98.004,1.44473117]
[1644634870469,5.099,98.067,98.01,0.024]
[1644634870870,5.099,98.067,98.004,1.44473117]
[1644634871069,5.099,98.067,98.005,1.44473117]
[1644634871270,5.099,98.067,98.01,0.024]
[1644634871473,5.099,98.067,98.004,1.44473117]
[1644634871671,5.099,98.067,98.01,0.024]
[1644634872072,5.099,98.067,98.005,1.44473117]
[1644634872371,5.099,98.067,98.01,0.024]
[1644634872571,5.099,98.067,98.011,41.02123441]
[1644634872871,5.099,98.067,98.01,1.44473117]
[1644634873073,15.3091,98.06,98.004,0.00473117]
[1644634873275,24.815,98.068,97.976,2.88013358]
[1644634873276,5.099,98.059,97.976,2.88013358]
[1644634873474,14.68,98.05,97.99,0.024]
[1644634873673,45.7103,98.049,97.97,0.024]
[1644634873873,45.7103,98.049,97.916,23.6815]
[1644634873874,17.32667609,98.048,97.95,0.024]
[1644634874074,5.102,98.047,97.94,0.024]
[1644634874274,15.3176,98.03,97.94,0.024]
[1644634874476,35.3147684,98.028,97.94,0.024]
[1644634874674,5.102,98.027,97.94,0.024]
[1644634875274,15.3156,98.02,97.94,0.024]
[1644634875476,14.68,98.01,97.94,0.024]
[1644634875675,17.32667609,98.008,97.94,0.024]
[1644634876776,15.3199,98.0,97.94,0.024]
[1644634877077,29.9999,98.0,97.94,0.024]
[1644634877277,5.103,97.999,97.94,0.024]
[1644634878077,2.38366791,97.998,97.94,0.024]
[1644634878278,5.103,97.997,97.94,0.024]
[1644634878481,28.5066,97.997,97.94,0.024]
[1644634878678,30.89026791,97.997,97.94,0.024]
[1644634878879,35.3147684,97.989,97.94,0.024]
[1644634879080,14.68,97.98,97.92,0.024]
[1644634879280,5.104,97.979,97.92,0.024]
[1644634879481,5.104,97.979,97.91,0.024]
[1644634880082,15.3235,97.97,97.91,0.024]
[1644634880283,22.43167609,97.969,97.91,0.024]
[1644634881084,15.325,97.96,97.91,0.024]
[1644634881280,5.105,97.959,97.91,0.024]
[1644634882483,15.325,97.96,97.91,0.024]
[1644634882682,15.325,97.96,97.905,45.34281931]
[1644634883982,5.105,97.959,97.89,0.024]
[1644634884383,15.3262,97.95,97.89,0.024]
[1644634884782,5.105,97.949,97.89,0.024]
[1644634884982,40.4197684,97.949,97.899,37.69396082]
[1644634885185,40.4197684,97.949,97.9,0.024]
[1644634885382,40.4197684,97.949,97.89,0.024]
[1644634886184,40.4197684,97.949,97.897,43.8858799]
[1644634886387,35.3147684,97.949,97.9,0.024]
[1644634886785,15.3262,97.95,97.9,0.024]
[1644634887186,15.3262,97.95,97.897,43.8858799]
[1644634887789,40.85876593,97.958,97.897,43.8858799]
[1644634887986,40.85876593,97.958,97.9,0.024]
[1644634888588,40.85876593,97.958,97.89,0.024]
[1644634888589,5.105,97.957,97.89,0.024]
[1644634888789,7.48866791,97.957,97.89,0.024]
[1644634888991,2.38366791,97.956,97.89,0.024]
[1644634889188,5.106,97.955,97.89,0.024]
[1644634889388,15.3301,97.93,97.84,0.024]
[1644634889589,15.3301,97.93,97.841,5.107]
[1644634889789,5.108,97.929,97.85,0.024]
[1644634891292,5.108,97.929,97.851,2.38366791]
[1644634891493,5.108,97.929,97.86,0.024]
[1644634891690,15.3301,97.93,97.86,0.024]
[1644634891893,5.107,97.929,97.86,0.024]
[1644634893099,15.3301,97.93,97.86,0.024]
[1644634894399,5.107,97.929,97.86,0.024]
[1644634897721,15.3301,97.93,97.861,5.107]
[1644634897921,15.3301,97.93,97.87,0.024]
[1644634902328,5.107,97.929,97.87,0.024]
[1644634902526,5.107,97.929,97.862,4.08282366]
[1644634902726,5.107,97.929,97.87,0.024]
[1644634902927,5.107,97.929,97.86,0.024]
[1644634903528,5.107,97.929,97.861,2.38366791]
[1644634903730,5.107,97.929,97.87,0.024]
[1644634906833,15.3313,97.92,97.87,0.024]
[1644634907034,15.3313,97.92,97.863,4.09222904]
[1644634907035,23.1096,97.919,97.863,4.09222904]
[1644634907240,28.2166,97.919,97.86,0.024]
[1644634907836,6.38392469,97.918,97.86,0.024]
[1644634908035,5.107,97.917,97.86,0.024]
[1644634911843,5.107,97.918,97.86,0.024]
[1644634912541,5.107,97.918,97.86,2.90413358]
[1644634912742,5.107,97.918,97.86,0.024]
[1644634912940,5.107,97.918,97.86,2.90413358]
[1644634913140,5.107,97.918,97.86,0.024]
[1644634913442,23.1096,97.919,97.86,0.024]
[1644634913443,23.1096,97.919,97.867,2.88013358]
[1644634913843,23.1096,97.919,97.868,2.88013358]
[1644634914142,23.1096,97.919,97.866,2.88013358]
[1644634914344,5.107,97.918,97.867,2.88013358]
[1644634914643,23.1096,97.919,97.863,4.09222904]
[1644634914847,5.107,97.917,97.862,6.97236262]
[1644634915142,5.107,97.918,97.862,2.88013358]
[1644634916146,5.107,97.918,97.864,2.88013358]
[1644634916346,23.1096,97.919,97.864,2.88013358]
[1644634916546,23.1096,97.919,97.865,5.26380149]
[1644634916748,27.8127,97.937,97.868,2.88013358]
[1644634916947,5.107,97.944,97.872,2.88013358]
[1644634917148,5.106,97.968,97.872,2.88013358]
[1644634917351,5.106,97.968,97.874,2.88013358]
[1644634917554,15.3263,97.95,97.875,2.88013358]
[1644634917753,6.25695843,97.948,97.89,0.024]
[1644634917952,5.106,97.947,97.89,0.024]
[1644634918151,5.106,97.947,97.88,0.024]
[1644634918951,24.935,97.946,97.88,0.024]
[1644634919152,5.106,97.945,97.88,0.024]
[1644634920151,5.106,97.945,97.881,2.38366791]
[1644634920452,5.106,97.968,97.89,2.88013358]
[1644634920659,5.105,97.969,97.892,2.88013358]
[1644634920851,5.105,97.969,97.9,0.024]
[1644634922777,15.3248,97.96,97.9,0.024]
[1644634923178,5.105,97.959,97.9,0.024]
[1644634923976,24.7797,97.958,97.9,0.024]
[1644634926982,5.105,97.957,97.9,0.024]
[1644634927183,24.7797,97.958,97.9,0.024]
[1644634928183,15.3233,97.97,97.9,0.024]
[1644634928383,24.9053,97.969,97.9,0.024]
[1644634928583,24.9053,97.969,97.901,5.105]
[1644634928784,24.9053,97.969,97.902,4.09019461]
[1644634928983,5.105,97.983,97.903,5.105]
[1644634929184,5.105,97.983,97.904,4.09019461]
[1644634929384,5.105,98.009,97.91,15.3197]
[1644634929586,5.105,98.009,97.907,2.88013358]
[1644634929587,52.5654,98.039,97.92,0.024]
[1644634929887,15.3138,98.03,97.921,2.88013358]
[1644634930084,5.103,98.029,97.923,2.88013358]
[1644634930284,44.12289386,98.028,97.925,48.16889281]
[1644634930488,5.103,98.027,97.926,27.51429461]
[1644634930687,5.103,98.027,97.927,4.09019461]
[1644634930886,5.103,98.027,97.941,34.75612716]
[1644634931290,15.3155,98.02,97.941,34.75612716]
[1644634931487,5.103,98.019,97.941,34.75612716]
[1644634931688,24.265,98.018,97.941,34.75612716]
[1644634931888,5.103,98.017,97.941,34.75612716]
[1644634933289,5.103,98.017,97.942,5.103]
[1644634933491,8.51855063,98.009,97.942,5.103]
[1644634933689,5.103,98.008,97.941,34.75612716]
[1644634935791,15.3185,98.0,97.941,34.75612716]
[1644634936196,5.103,98.008,97.941,34.75612716]
[1644634936394,5.103,98.017,97.942,7.48666791]
[1644634936595,24.265,98.018,97.942,7.48666791]
[1644634936796,24.265,98.018,97.943,2.38366791]
[1644634936996,5.103,98.017,97.943,2.38366791]
[1644634937396,24.265,98.018,97.943,2.38366791]
[1644634937397,5.103,98.038,97.943,2.38366791]
[1644634937596,23.4217,98.037,97.95,15.3133]
[1644634937798,23.4217,98.037,97.951,5.102]
[1644634937996,5.102,98.036,97.951,7.48566791]
[1644634938298,5.102,98.036,97.945,5.102]
[1644634938896,5.102,98.036,97.961,34.59352596]
[1644634939096,5.102,98.036,97.962,5.102]
[1644634939299,5.102,98.036,97.961,39.69552596]
[1644634940598,5.102,98.036,97.961,34.59352596]
[1644634942805,5.102,98.036,97.962,5.102]
[1644634943205,5.102,98.036,97.962,28.0385]
[1644634946010,5.102,98.036,97.962,22.9365]
[1644634950532,5.102,98.036,97.962,28.0385]
[1644634957438,15.3139,98.03,97.962,28.0385]
[1644634957639,14.56127683,98.029,97.962,22.9365]
[1644634957839,14.56127683,98.029,97.961,34.59352596]
[1644634958846,15.3153,98.02,97.961,34.59352596]
[1644634959047,5.102,98.019,97.961,34.59352596]
[1644634959245,27.9734,98.019,97.961,34.59352596]
[1644634959444,22.8714,98.019,97.961,34.59352596]
[1644634959643,5.102,98.018,97.961,34.59352596]
[1644634960445,5.102,98.018,97.927,7.98213358]
[1644634960653,15.3169,98.01,97.927,2.88013358]
[1644634960847,5.103,98.009,97.924,23.5318]
[1644634961049,22.8368,98.008,97.924,23.5318]
[1644634961248,5.103,98.007,97.924,23.5318]
[1644634961449,36.68091217,98.006,97.925,42.04878125]
[1644634961650,5.103,98.005,97.925,42.04878125]
[1644634962452,15.3198,98.0,97.925,42.04878125]
[1644634962864,15.3198,98.0,97.925,44.43244916]
[1644634963950,5.103,97.999,97.926,5.103]
[1644634964353,5.103,97.999,97.926,7.48666791]
[1644634964850,5.103,97.999,97.926,5.103]
[1644634966255,5.103,97.999,97.925,42.04878125]
[1644634969254,15.32,97.99,97.925,42.04878125]
[1644634969456,5.104,97.989,97.925,42.04878125]
[1644634969653,24.61,97.988,97.925,42.04878125]
[1644634969854,5.104,97.987,97.925,42.04878125]
[1644634972059,24.61,97.988,97.925,42.04878125]
[1644634975158,5.104,98.013,97.926,7.48766791]
[1644634975357,22.8243,98.006,97.927,24.5928]
[1644634975561,22.8243,98.006,97.928,5.103]
[1644634975759,22.8243,98.006,97.928,7.48666791]
[1644634975957,22.8243,98.006,97.929,2.38366791]
[1644634976157,22.8243,98.006,97.93,5.103]
[1644634976558,22.8243,98.006,97.931,2.38366791]
[1644634976760,22.8243,98.006,97.941,39.31367737]
[1644634978059,5.103,98.005,97.941,39.31367737]
[1644634980065,22.8243,98.006,97.941,39.31367737]
[1644634980262,22.8243,98.006,97.942,5.103]
[1644634982668,5.103,98.005,97.941,39.31367737]
[1644634989368,15.3187,98.0,97.941,39.31367737]
[1644634989567,5.103,97.999,97.941,39.31367737]
[1644634990669,5.103,97.999,97.916,2.88013358]
[1644634990670,15.3204,97.99,97.916,2.88013358]
[1644634990868,23.4335,97.989,97.91,0.024]
[1644634991069,28.5375,97.989,97.91,0.024]
[1644634991469,28.29798263,97.989,97.91,0.024]
[1644634991668,43.96796502,97.988,97.91,0.024]
[1644634991868,5.104,97.987,97.91,0.024]
[1644634992668,5.104,97.988,97.91,0.024]
[1644634993269,5.104,97.988,97.93,1.44600651]
[1644634993472,5.104,97.988,97.931,38.90571885]
[1644634994673,15.3218,97.98,97.931,38.90571885]
[1644634994870,5.104,97.979,97.931,38.90571885]
[1644634995070,5.104,97.978,97.917,1.44600651]
[1644634995271,5.104,97.978,97.89,0.024]
[1644634995272,18.981233,97.977,97.89,0.024]
[1644634995471,1.43531963,97.961,97.91,0.024]
[1644634995774,14.68,97.95,97.89,0.024]
[1644634995970,4.13227067,97.939,97.87,0.024]
[1644634996171,4.13227067,97.939,97.857,35.36091342]
[1644634996172,5.107,97.938,97.86,0.024]
[1644634996373,7.49066791,97.938,97.86,0.024]
[1644634996572,18.93066791,97.938,97.86,0.024]
[1644634996773,2.38366791,97.937,97.86,0.024]
[1644634996972,5.107,97.936,97.86,0.024]
[1644634997374,2.38366791,97.935,97.86,0.024]
[1644634997874,41.37286962,97.919,97.86,0.024]
[1644634998076,5.107,97.918,97.857,35.36091342]
[1644634998276,7.49066791,97.918,97.857,35.36091342]
[1644634998674,2.38366791,97.917,97.857,35.36091342]
[1644634998873,2.38366791,97.917,97.84,0.024]
[1644634998874,15.3347,97.9,97.84,0.024]
[1644634999077,15.3347,97.9,97.826,1.44600651]
[1644634999078,5.108,97.899,97.83,0.024]
[1644634999875,11.26857487,97.898,97.83,0.024]
[1644635000175,5.109,97.897,97.83,0.024]
[1644635001175,5.109,97.899,97.83,0.024]
[1644635004799,5.109,97.909,97.831,5.109]
[1644635004999,30.0128,97.91,97.831,5.109]
[1644635005301,5.109,97.929,97.831,7.49266791]
[1644635005499,5.109,97.929,97.84,15.3539]
[1644635005699,5.108,97.951,97.85,14.68]
[1644635005902,15.3247,97.96,97.851,5.107]
[1644635006100,5.106,97.959,97.86,0.024]
[1644635006300,5.106,97.959,97.862,36.3582]
[1644635006499,5.106,97.959,97.87,0.024]
[1644635006700,5.106,97.959,97.871,5.106]
[1644635006900,5.106,97.959,97.88,15.3241]
[1644635007103,15.3247,97.96,97.88,15.3241]
[1644635007503,15.3247,97.96,97.881,2.38366791]
[1644635007802,5.106,97.97,97.89,15.3225]
[1644635008002,30.0029,97.98,97.89,15.3465]
[1644635008003,5.106,97.959,97.89,15.3465]
[1644635008205,5.105,97.979,97.9,0.024]
[1644635008406,5.105,97.979,97.891,2.38366791]
[1644635008407,5.105,97.989,97.892,38.11534139]
[1644635008702,5.105,97.978,97.901,2.38366791]
[1644635008902,5.105,97.988,97.901,2.38366791]
[1644635009102,5.104,97.989,97.901,2.38366791]
[1644635009305,5.104,97.99,97.902,5.104]
[1644635009501,20.4242,97.99,97.902,5.104]
[1644635009702,20.4242,97.99,97.9,15.3449]
[1644635010703,20.4242,97.99,97.9,0.024]
[1644635011406,14.68,97.98,97.9,0.024]
[1644635011606,15.3242,97.97,97.9,0.024]
[1644635011805,5.105,97.969,97.892,38.11534139]
[1644635012907,28.043,97.969,97.892,38.11534139]
[1644635013709,15.325,97.96,97.892,38.11534139]
[1644635013910,7.1101515,97.958,97.892,38.11534139]
[1644635014108,5.105,97.957,97.892,38.11534139]
[1644635014510,5.105,97.959,97.892,38.11534139]
[1644635015312,40.49444038,97.958,97.892,38.11534139]
[1644635015512,5.105,97.957,97.892,38.11534139]
[1644635015913,15.325,97.96,97.892,38.11534139]
[1644635015914,5.105,97.959,97.892,38.11534139]
[1644635017318,15.325,97.96,97.892,38.11534139]
[1644635017517,5.105,97.968,97.892,38.11534139]
[1644635019721,22.938,97.969,97.893,5.105]
[1644635021623,22.938,97.969,97.894,2.38366791]
[1644635021823,22.938,97.969,97.895,5.105]
[1644635022523,5.105,97.968,97.895,5.105]
[1644635026026,5.105,97.968,97.892,38.11534139]
[1644635027225,5.105,97.968,97.89,0.024]
[1644635027426,2.38366791,97.967,97.88,0.024]
[1644635027628,15.3251,97.96,97.88,0.024]
[1644635027829,5.106,97.959,97.88,0.024]
[1644635028231,14.28620644,97.958,97.88,0.024]
[1644635028432,5.106,97.957,97.88,0.024]
[1644635028631,29.6515,97.957,97.88,0.024]
[1644635028832,32.03516791,97.957,97.88,0.024]
[1644635029034,2.38366791,97.956,97.88,0.024]
[1644635029332,5.106,97.955,97.88,0.024]
[1644635029533,14.68,97.95,97.88,0.024]
[1644635029733,15.3289,97.94,97.88,0.024]
[1644635029933,5.106,97.939,97.867,46.85737976]
[1644635030132,5.106,97.949,97.87,0.024]
[1644635030334,5.107,97.938,97.867,46.85737976]
[1644635030532,14.68,97.93,97.87,0.024]
[1644635030735,14.68,97.92,97.86,0.024]
[1644635030952,15.335,97.9,97.842,1.44600651]
[1644635031156,15.335,97.9,97.834,1.44600651]
[1644635031355,23.7484,97.899,97.833,1.44600651]
[1644635031756,23.7484,97.899,97.83,0.024]
[1644635031757,23.7484,97.899,97.835,1.44600651]
[1644635032357,23.7484,97.899,97.837,1.44600651]
[1644635032756,23.7484,97.899,97.836,1.44600651]
[1644635032957,23.7484,97.899,97.834,38.8707713]
[1644635033357,15.3356,97.89,97.834,37.42476479]
[1644635033858,15.3356,97.89,97.835,1.44600651]
[1644635034859,15.3356,97.89,97.834,37.42476479]
[1644635035060,5.109,97.889,97.834,37.42476479]
[1644635038663,15.3374,97.88,97.834,37.42476479]
[1644635039066,5.109,97.938,97.835,2.38366791]
[1644635039264,5.108,97.926,97.843,1.44600651]
[1644635039466,5.107,97.948,97.85,0.024]
[1644635039669,15.3314,97.92,97.85,0.024]
[1644635039870,36.25262849,97.919,97.85,0.024]
[1644635040072,41.36062849,97.919,97.85,0.024]
[1644635041071,23.3249,97.918,97.85,0.024]
[1644635041274,5.108,97.917,97.85,0.024]
[1644635041876,15.3336,97.91,97.85,0.024]
[1644635042075,5.108,97.909,97.834,37.42476479]
[1644635043875,15.3364,97.89,97.834,37.42476479]
[1644635045675,16.388816,97.889,97.834,37.42476479]
[1644635045875,5.109,97.888,97.834,37.42476479]
[1644635046878,5.109,97.889,97.834,37.42476479]
[1644635048277,28.2188,97.889,97.834,37.42476479]
[1644635048877,23.1098,97.889,97.834,37.42476479]
[1644635049483,51.1179,97.92,97.835,5.109]
[1644635049680,23.1691,97.919,97.84,0.024]
[1644635049879,5.108,97.918,97.84,0.024]
[1644635050079,5.108,97.918,97.841,1.44600651]
[1644635050279,23.1691,97.919,97.842,5.108]
[1644635050679,5.108,97.922,97.844,1.44600651]
[1644635050882,23.0703,97.932,97.844,1.44600651]
[1644635050883,5.108,97.931,97.844,1.44600651]
[1644635051081,5.108,97.931,97.85,15.3533]